Cogmind - Beta 17.1 @@@ ROGUE MODE // 2026.08.30 @ 15:17:43 Player: SunShine214 Result: Destroyed by S-10 Pest with Light Assault Rifle Performance ------------- Evolutions (0) 0 Regions Visited (1) 200 Robots Destroyed (33) 165 Value Destroyed (729) 729 Prototype IDs (0) 0 Alien Tech Used (0) 0 Bonus (0) 0 TOTAL SCORE: 1094 Bonus ------- None Cogmind --------- Core Integrity 0/250 Matter 300/300 Energy 160/160 System Corruption 1% Temperature Hot (263) Movement Walking (120) Location -10/Materials Parts ------- > --- POWER (1) -------- Light Nuclear Core > --- PROPULSION (2) --- Improved Aluminum Leg Improved Aluminum Leg > --- UTILITY (2) ------ Large Storage Unit Seismic Detector (fused) > --- WEAPON (2) ------- (None) > --- INVENTORY (15) --- Light Ion Engine Light Treads Improved Aluminum Leg Improved Aluminum Leg Large Storage Unit Hacking Suite Mining Laser Peak State ------------ > --- POWER ------------ Light Nuclear Core > --- PROPULSION ------- Improved Aluminum Leg Improved Aluminum Leg > --- UTILITY ---------- Large Storage Unit Seismic Detector > --- WEAPON ----------- Small Laser Particle Gun > --- INVENTORY -------- Light Ion Engine Light Treads Improved Aluminum Leg Improved Aluminum Leg Large Storage Unit Hacking Suite Mining Laser [Rating: 13] Favorites ----------- Power Light Nuclear Core Engine Light Ion Engine Power Core Light Nuclear Core Propulsion Light Treads Treads Light Treads Leg Improved Aluminum Leg Utility Seismic Detector Device Seismic Detector Storage Small Storage Unit Weapon Assault Rifle Energy Gun Particle Gun Ballistic Gun Assault Rifle Build | -11 -10 ------- Run | Yrd Mat Slots Evolved . | . . Power . | . . Propulsion . | . . Utility . | . . Weapon . | . . Parts Attached 15 | 7 8 Power 3 | 1 2 Engine 1 | 1 . Core 2 | . 2 Reactor . | . . Propulsion 5 | 2 3 Treads 3 | 2 1 Leg 2 | . 2 Wheel . | . . Hover . | . . Flight . | . . Utility 3 | 2 1 Device 1 | 1 . Storage 2 | 1 1 Processor . | . . Hackware . | . . Protection . | . . Artifact . | . . Weapon 4 | 2 2 Energy Gun 2 | . 2 Energy Cannon . | . . Ballistic Gun 2 | 2 . Ballistic Cannon . | . . Launcher . | . . Special Weapon . | . . Impact Weapon . | . . Slashing Weapon . | . . Piercing Weapon . | . . Special Melee Weapon . | . . Unidentified Prototypes . | . . Parts Lost 7 | . 7 Power 1 | . 1 Propulsion 2 | . 2 Utility . | . . Weapon 4 | . 4 Highest Loss Streak 4 | . 4 To Critical Strikes . | . . Average Backups 3 | . 4 Power . | . . Propulsion 1 | . 1 Utility . | . 1 Weapon . | . 1 Tool/Special . | . . Unused Backups 5 | . 5 Power . | . . Propulsion 2 | . 2 Utility 2 | . 2 Weapon 1 | . 1 Tool/Special . | . . Average Slot Usage (%) 96 | . 96 Engine 4 | . 4 Core 8 | . 8 Treads 24 | . 24 Leg 2 | . 2 Device 14 | . 14 Storage 14 | . 14 Energy Gun 3 | . 3 Ballistic Gun 23 | . 23 Peak Build Rating 13 | 7 13 Average Rating 8 | 5 8 On Entrance 3 | . 7 Avg Prop Armor Cover (%) . | . . Naked Turns . | . . Heaviest Build 30 | 13 30 Greatest Support 40 | 40 40 Greatest Overweight (x) 1 | . 1 Average Overweight (x) . | . . Largest Inventory Capacity 15 | 8 15 Average Capacity 10 | 7 10 Most Carried 9 | 2 9 Average Carried 3 | . 4 Final Capacity 15 | 8 15 Final Carried 7 | 1 7 Class Distribution -------------------- 94% | Mutant 5% | Scavenger-Mutant Dominant Class ---------------- Mutant | -10/Materials Resources | -11 -10 ----------- Run | Yrd Mat Matter Collected 856 | 366 490 Remotely . | . . Salvage Created 1120 | 196 924 Parts 77 | 20 57 Haulers Intercepted 2 | . 2 Recyclers Shooed 5 | 1 4 Parts Field Recycled . | . . Retrieved Matter . | . . Parts Self-Destructed . | . . Prevented . | . . Parts Restored . | . . Kills | -11 -10 ------- Run | Yrd Mat Combat Hostiles Destroyed 18 | . 18 Guns 18 | . 18 Classes Destroyed 9 | 3 6 Worker 1 | 1 . Tunneler 5 | 5 . Hauler 2 | . 2 Recycler 2 | 1 1 Mechanic 1 | . 1 Operator 1 | . 1 Watcher 3 | . 3 Swarmer 2 | . 2 Grunt 16 | . 16 Best Kill Streak 6 | 3 6 Combat Bots Only 6 | . 6 Max Kills in Single Turn 2 | 1 2 Gunslinging . | . . Exploded . | . . Melee . | . . Uniques/NPCs Destroyed . | . . Combat | -11 -10 -------- Run | Yrd Mat Hostile Shots Fired 133 | . 133 Missed 38 | . 38 Hits 95 | . 95 Projectile 95 | . 95 Damage Taken 1051 | . 1051 Core 257 | . 257 Absorbed by Shields . | . . Core Remaining (%) 100 | 100 . Volleys Fired 111 | 16 95 Largest 2 | 2 2 Hottest 105 | 40 105 Shots Fired 210 | 32 178 Gun 210 | 32 178 Cannon . | . . Launcher . | . . Special . | . . Kinetic 165 | 32 133 Thermal 45 | . 45 Explosive . | . . Electromagnetic . | . . Robot Hit Streak 20 | 3 20 Robot Miss Streak 4 | 3 4 Penetration Max . | . . Secondary Targets 3 | . 3 Max Gunslinging Chain 1 | . 1 Shots Hit Robots 136 | 17 119 Core Hits 56 | 8 48 Critical Kills . | . . Critical Parts Destroyed 1 | . 1 Critical Strikes 2 | . 2 Burn 1 | . 1 Destroy 1 | . 1 Melee Attacks . | . . Impact . | . . Slashing . | . . Piercing . | . . Sneak Attacks . | . . Combat Hostiles . | . . Follow-up Attacks . | . . Damage Inflicted 1815 | 231 1584 Guns 1809 | 231 1578 Cannons . | . . Explosions . | . . Melee . | . . Ramming 6 | . 6 Kinetic 1446 | 231 1215 Thermal 363 | . 363 Explosive . | . . Electromagnetic . | . . Impact . | . . Slashing . | . . Piercing . | . . Highest Corruption 1 | . 1 Average Corruption 1 | . 1 Corruption Purged . | . . Corruption Blocked . | . . Effects 5 | . 5 Matter Fused 1 | . 1 Parts Fused 1 | . 1 Data Loss (minor) 2 | . 2 Weapon Failures 1 | . 1 Overload Shots . | . . Overflow Damage . | . . Projectiles . | . . Explosions . | . . Melee . | . . Knockbacks . | . . Impact . | . . Kinetic . | . . Secondary . | . . Self-Inflicted Damage . | . . Shots . | . . Rammed 2 | . 2 Targets Rammed 3 | . 3 Kicked . | . . Crushed 1 | . 1 Highest Temperature 306 | . 306 Average Temperature 111 | . 111 Received Heat Transfer 516 | . 516 Effects 4 | . 4 Interference 3 | . 3 Matter Decay 1 | . 1 Siege Activations . | . . Martial Activations . | . . Shielding Activations . | . . Robots Disrupted . | . . Combat Hostiles . | . . Robots Corrupted . | . . Combat Hostiles . | . . Parts Fried . | . . Impact Corruptions . | . . Robots Melted . | . . Combat Hostiles . | . . Parts Melted 2 | . 2 Heat Transferred 916 | . 916 Parts Sabotaged . | . . Parts Stolen . | . . Parts Stripped . | . . Power Chain Reactions . | . . Alert | -11 -10 ------- Run | Yrd Mat Maximum Alert Level . | . . Low Security (%) 100 | 100 100 Level 1 . | . . Level 2 . | . . Level 3 . | . . Level 4 . | . . Level 5 . | . . High Security . | . . Max Security . | . . Peak Influence 154 | 10 154 Initial . | . . Average 39 | 1 49 Influence Increases 555 | 35 520 Destroy 0b10 Robot/C 360 | . 360 Destroy 0b10 Robot/NC 75 | 35 40 Destroy Leader 70 | . 70 Successful Hack 5 | . 5 Disable Machine 15 | . 15 Lose Combat Pursuer 30 | . 30 Influence Decreases 411 | 35 376 Time Decay 341 | 35 306 Lost Part 70 | . 70 Squads Dispatched 3 | . 3 Investigation 2 | . 2 Extermination . | . . Reinforcement 1 | . 1 Assault . | . . Garrison . | . . Intercept . | . . Searches Triggered . | . . Construction Impeded . | . . Haulers Reinforced . | . . Active Scanning Responses . | . . Cargo Convoy Interrupts . | . . Stealth | -11 -10 --------- Run | Yrd Mat Distress Signals . | . . Communications Jammed . | . . Distress Signals . | . . Times Spotted 28 | . 28 Peak Tracking Total 5 | . 5 Tactical Retreats 1 | . 1 Traps | -11 -10 ------- Run | Yrd Mat Traps Triggered 1 | . 1 Indirectly . | . . Trap Hack Attempts . | . . Triggered . | . . Disarmed 1 | . 1 Reprogrammed . | . . Reused . | . . Traps Extracted . | . . Installed . | . . Triggered . | . . Machines | -11 -10 ---------- Run | Yrd Mat Machines Disabled 1 | . 1 Max in Single Turn 1 | . 1 Machines Repaired . | . . Machines Dismantled . | . . Machines Sabotaged . | . . Overloaded Fab Kills . | . . Hacking | -11 -10 --------- Run | Yrd Mat Machines Accessed 4 | . 4 Terminals 3 | . 3 Fabricators . | . . Repair Stations . | . . Recycling Units 1 | . 1 Scanalyzers . | . . Garrison Access . | . . Total Hacks 12 | . 12 Successful 4 | . 4 Failed 8 | . 8 Catastrophic 2 | . 2 Database Lockouts . | . . Manual 1 | . 1 Terminals 9 | . 9 Fabricators . | . . Repair Stations . | . . Recycling Units 3 | . 3 Scanalyzers . | . . Garrison Access . | . . Terminal Hacks 4 | . 4 Alert Level 1 | . 1 Locate Traps 1 | . 1 Disarm Traps 1 | . 1 Investigation Status 1 | . 1 Fabricator Hacks . | . . Repair Station Hacks . | . . Recycling Unit Hacks . | . . Scanalyzer . | . . Garrison Access Hacks . | . . Unauthorized Hacks . | . . Terminals . | . . Fabricators . | . . Repair Stations . | . . Recycling Units . | . . Scanalyzers . | . . Garrison Access . | . . Data Cores Recovered . | . . Used . | . . Hacking Detections 4 | . 4 Full Trace Events 1 | . 1 Feedback Events 1 | . 1 Corruption 1 | . 1 Feedback Blocked . | . . Robot Schematics Acquired . | . . Robots Built . | . . Authchips . | . . Time . | . . Total Robot Build Rating . | . . Part Schematics Acquired . | . . Parts Built . | . . Authchips . | . . Time . | . . Total Part Build Rating . | . . Part Studies Acquired . | . . Parts Repaired . | . . Time . | . . Parts Recycled . | . . Recycled Matter . | . . Retrieved Matter . | . . Retrieved Components . | . . Parts Scanalyzed . | . . Part Schematics Acquired . | . . Parts Damaged . | . . Bothacking | -11 -10 ------------ Run | Yrd Mat Used RIF Installer . | . . Robots Hacked . | . . Non-combat . | . . Combat . | . . Robot Hacks Applied . | . . Relay Couplers Released . | . . Fabnet Peak Effective % . | . . Robots Rewired . | . . Allies Hacked . | . . Hacks Repelled . | . . Allies | -11 -10 -------- Run | Yrd Mat Total Allies . | . . Largest Group . | . . Highest-Rated Group . | . . Highest-Rated Ally . | . . Total Orders . | . . Ally Attacks . | . . Total Damage . | . . Kills . | . . Allies Corrupted . | . . Allies Melted . | . . Intel | -11 -10 ------- Run | Yrd Mat Active Infowar (turns) 848 | 14 834 Seismic 848 | 14 834 Robot Analysis Total . | . . Derelict Logs Recovered . | . . Drone Launches . | . . Drone Recoveries . | . . Exploration | -11 -10 ------------- Run | Yrd Mat Turns Passed 1178 | 243 935 Spaces Moved 413 | 56 357 Core 6 | 6 . Treads 382 | 50 332 Legs 25 | . 25 Wheels . | . . Hover . | . . Flight . | . . Fastest Speed 50 | 50 120 Average Speed 159 | 148 161 Slowest Speed 240 | 160 240 Overloaded Moves . | . . Propulsion Burnouts . | . . Robots Hopped . | . . Potential Cave-ins . | . . Cave-ins Triggered . | . . Exploration Rate (%) 35 | 4 67 Regions Visited 1 Branch Regions . Pre-discovered Areas . | . . Known Exits Taken . | . . Unknown Exits Taken 1 | 1 . Scrap Searched . | . . Spaces Dug . | . . Terrain Destroyed . | . . Melee . | . . Projectile . | . . AOE . | . . Terrain Rammed . | . . Walls Destroyed . | . . Machines Disabled . | . . Actions | -11 -10 --------- Run | Yrd Mat Total 713 | 181 532 Wait 162 | 101 61 Move 412 | 55 357 Hop . | . . Pick Up 9 | 2 7 Fast Attach 9 | 6 3 Attach 3 | 1 2 Detach . | . . Swap 3 | . 3 Drop 1 | . 1 Fire 111 | 16 95 Melee . | . . Ram . | . . Kick . | . . Crush 3 | . 3 Escape Stasis . | . . Rewire . | . . Trap . | . . Miscellaneous . | . . Route ------- -11/Scrapyard -10/Materials (discovered 2 exits: [*Mat] / [*Min]) History --------- Turn | Location | Event 62 | -11/Scrapyard | Discovered new exit (range 16) 244 | -11/Scrapyard | Entered Materials 308 | -10/Materials | Build established: Mutant 691 | -10/Materials | Discovered new exit (range 9) 878 | -10/Materials | Discovered new exit (range 11) 1027 | -10/Materials | Core integrity fell below 50% 1074 | -10/Materials | Lost 4 parts (1p1n2w) 1078 | -10/Materials | Core integrity fell below 20% 1179 | -10/Materials | Destroyed by S-10 Pest with Light Assault Rifle Last Messages --------------- 01102_ K-01 Serf collects debris. 01107_ Acquired 30 matter. 01108_ Acquired 34 matter. 01113_ K-01 Serf collects debris. 01113_ Acquired Lgt. Nuclear Core. 01116_ Acquired 10 matter. 01121_ K-01 Serf collects debris. 01123_ U-05 Engineer works on Matter Filter. 01125_ K-01 Serf collects debris. 01125_ U-05 Engineer works on Matter Filter. 01128_ K-01 Serf collects debris. 01128_ U-05 Engineer works on Matter Filter. 01133_ K-01 Serf collects debris. 01135_ U-05 Engineer works on Matter Filter. 01137_ K-01 Serf collects debris. 01140_ U-05 Engineer works on Matter Filter. 01160_ S-10 Pest destroyed. 01165_ Particle Gun destroyed. 01166_ S-10 Pest destroyed. 01177_ Sml. Laser destroyed. Map ----- +----------------------------------------------------+ | #?????????????????????????????? | | #???????????????######????????? | | * #???????????#???# """"""??????? | | +###########?####### ###=""""""" #???? | | % T #=""""""" #???? | | %+=""""""" #???? | | #%%"""""" #???? | | # ############ "" #! == #???? | | # #??????????# " #%!! #???? | | # #??????????# """ #*% * #???? | | # #??????????# """" ##+########???? | | # #??????????# """"" ![% #????????? | | # ###????????# """"" #????????? | | # #????????# " """ #???#????? | | # #????????# #?? #????? | | # #????????# ##+###???? | | # #????????# #???? | | # ########## #???? | | # """ + #???? | | # """ ### """ #???? | | + """ #?# * """ #???? | | # # #?############u """ #???? | | # # ! #??# # #???? | | # # #??# + #???? | | # ########??# # """ #???? | | # #?????????# ??#@ """ #???? | | # #####?????# ????# """ #???? | | # !!#?????# ""??????# #???? | | # !!#?????# ????????# % #???? | | # = !!#???????????????#=*%""" #???? | | +! !!#???????????????#s==""" #???? | | #! #???????????????# """ #???? | | #* #???????????????# #???? | | # #####???????????????# ?#???? | | # #???????????????????# # ?????? | | + #???????????????????? # ?????? | | # #????????????????????==!!#? ?????? | | # #????????????????????==!!#???????? | | # #????????????????????#####???????? | | # #????????????????????????????????? | | # #????????????????????????????????? | | # < #????????????????????????????????? | | # #????????????????????????????????? | | #####????????????????????????????????? | | ?????????????????????????????????????? | | ?????????????????????????????????????? | | ?????????????????????????????????????? | | ?????????????????????????????????????? | | ?????????????????????????????????????? | | ?????????????????????????????????????? | +----------------------------------------------------+ Best States ------------- Heat Dissipation 25 Energy Generation 14 Energy Capacity 160 Matter Stores 300 Matter Capacity 300 Sight Range 16 Terrain Scan Density 10 Evasion (%) 42 Recoil Reduction 2 Item Schematics ----------------- None Robot Schematics ------------------ None Fabricated ------------ Nothing Repaired ---------- Nothing Studied --------- None Alien Tech Used ----------------- None Achievements -------------- None Challenges ------------ None Game ------ Seed InertialHypervelocityPit Manual? 0 Play Time 00:11:36 Cumulative 205.7 hours Start 2026.08.30 @ 15:08:04 End 2026.08.30 @ 15:17:43 Sessions 1 Manual Loads 0 Difficulty Rogue Special Mode None Game No. 320 Rogue 320 Adventurer 0 Explorer 0 Win Type - Total 1 Types 1/0/0/0/0/0/0/0/0/0 Lore% 68 Gallery% 61 Achievement% 46 Wizard Run 0 Options --------- Layout 1 ASCII 0 Keyboard 1 Movement Arrows Keybinds 0 Fullscreen 1 Font 24/Smallcaps Map View 50x35 Zoom Use 0% Tactical HUD 1 Map Filters NONE Filters NONE Steam 1 RUN: 99cf6e3d-1ffc-48d8-932a-8a447718fca7